bitfinex/quotes_ETHUSD_20250217
["timestamp","ask_amount","ask_price","bid_price","bid_amount"]
[1739766941501,5.609,2668.4,2668.3,4.2977]
[1739766942398,5.609,2668.4,2668.3,5.0987]
[1739766942936,5.609,2668.4,2668.3,5.0612159]
[1739766946563,5.95441386,2668.4,2668.3,5.0612159]
[1739766946712,0.61441386,2668.4,2668.3,5.0612159]
[1739766947041,0.61441386,2668.4,2668.3,4.2602159]
[1739766950006,0.61441386,2668.4,2668.3,5.14111449]
[1739766952303,0.61441386,2668.4,2668.3,4.2602159]
[1739766953431,0.61441386,2668.4,2668.3,5.0612159]
[1739766953637,0.34541386,2668.4,2668.3,5.0612159]
[1739766953839,5.608,2668.8,2668.4,0.55]
[1739766954035,5.34,2668.8,2668.7,3.74714]
[1739766954251,5.608,2668.8,2668.7,3.74714]
[1739766954862,5.608,2668.8,2668.6,3.74727]
[1739766955069,5.608,2668.8,2668.5,3.74742]
[1739766955272,6.618502,2668.8,2668.5,3.74742]
[1739766956672,0.7503,2668.7,2668.3,0.55]
[1739766957027,0.7503,2668.7,2668.4,3.74749]
[1739766958223,0.7503,2668.7,2668.4,7.49494]
[1739766958424,0.7503,2668.7,2668.6,3.74728]
[1739766958744,6.618502,2668.8,2668.6,3.74728]
[1739766959138,6.618502,2668.8,2668.3,4.29761]
[1739766959356,0.7420802,2668.7,2668.5,3.74736]
[1739766960228,0.7420802,2668.7,2668.5,3.74731]
[1739766960465,5.608,2668.8,2668.6,3.74728]
[1739766960961,5.608,2668.8,2668.6,7.4202136]
[1739766961165,5.608,2668.8,2668.6,3.6730136]
[1739766961668,0.33357558,2668.7,2668.6,3.6730136]
[1739766961854,5.608,2668.8,2668.6,3.6730136]
[1739766962058,0.33357558,2668.7,2668.6,3.6730136]
[1739766962371,5.608,2668.8,2668.6,3.6730136]
[1739766962550,5.608,2668.8,2668.7,3.74714]
[1739766963172,5.608,2668.8,2668.6,3.6730136]
[1739766964472,5.608,2668.8,2668.6,7.4201936]
[1739766964633,5.608,2668.8,2668.7,3.74714]
[1739766965465,5.34,2668.8,2668.7,0.8001]
[1739766965665,5.607,2668.8,2668.7,3.74714]
[1739766965870,5.607,2668.8,2668.6,3.6730136]
[1739766968471,5.607,2668.8,2668.7,3.74714]
[1739766971081,0.267,2668.8,2668.7,3.74714]
[1739766971281,6.1423,2669.1,2668.9,3.74685]
[1739766971487,0.267,2669.0,2668.5,3.74737]
[1739766971854,0.267,2669.0,2668.9,3.74686]
[1739766972054,0.267,2669.0,2668.9,3.7000204]
[1739766972584,5.34,2669.1,2669.0,3.74672]
[1739766972766,5.607,2669.1,2669.0,3.74672]
[1739766973558,14.5906,2669.5,2669.3,3.74619]
[1739766973779,13.761,2669.5,2669.4,3.74616]
[1739766973945,14.028,2669.5,2669.4,3.74616]
[1739766975851,8.688,2669.5,2669.4,3.74616]
[1739766976063,8.421,2669.5,2669.4,3.74616]
[1739766976268,8.75537307,2669.5,2669.4,5.371114]
[1739766977691,8.75537307,2669.5,2669.4,5.921114]
[1739766978357,0.33437307,2669.5,2669.4,5.921114]
[1739766978859,0.267,2669.8,2669.7,3.74573]
[1739766979058,0.60224363,2669.8,2669.7,3.74573]
[1739766981393,0.33524363,2669.8,2669.7,3.74573]
[1739766981823,0.267,2670.1,2669.9,3.74536]
[1739766983377,0.267,2670.1,2670.0,3.74531]
[1739766983578,0.267,2670.1,2669.9,3.74536]
[1739766983869,0.267,2670.1,2670.0,3.74531]
[1739766984092,5.34,2670.2,2670.1,3.74517]
[1739766984304,5.607,2670.2,2670.1,3.74517]
[1739766988317,0.267,2670.2,2670.1,3.74517]
[1739766991333,0.6029105,2670.2,2670.1,3.74517]
[1739766992625,0.3359105,2670.2,2670.1,5.119417]
[1739766992989,0.266,2670.5,2670.4,3.74475]
[1739766997806,1.0441,2670.5,2670.4,3.74475]
[1739766999317,1.0441,2670.5,2670.2,3.74503]
[1739766999515,1.0441,2670.5,2670.2,7.48999]
[1739766999719,1.0441,2670.5,2670.2,7.48993]
[1739766999917,1.0441,2670.5,2670.3,3.74489]
[1739767000509,1.0441,2670.5,2670.4,3.74475]
[1739767002028,0.266,2670.5,2670.4,3.74475]
[1739767002930,5.606,2670.7,2670.5,3.74461]
[1739767003518,5.606,2670.7,2670.6,3.74447]
[1739767004642,5.606,2670.7,2670.4,3.7447]
[1739767004643,5.606,2670.7,2670.5,3.7446]
[1739767005455,5.606,2670.7,2670.3,0.752]
[1739767005603,5.606,2670.7,2670.4,3.74475]
[1739767005803,5.606,2670.7,2670.5,3.74455]
[1739767006241,5.606,2670.7,2670.6,3.74447]
[1739767006544,5.94228449,2670.7,2670.5,3.74455]
[1739767008247,5.94228449,2670.7,2670.4,3.74474]
[1739767010396,5.94228449,2670.7,2670.3,3.74488]
[1739767015404,11.10758994,2670.7,2670.1,3.74516]
[1739767015611,0.8058,2670.6,2670.0,4.29524]
[1739767015898,0.33642271,2670.5,2670.1,3.7451]
[1739767016485,0.33642271,2670.5,2670.0,3.74524]
[1739767016905,0.33642271,2670.5,2670.1,3.74507]
[1739767018099,0.33642271,2670.5,2670.1,3.74509]
[1739767018305,0.33642271,2670.5,2670.3,3.74478]
[1739767018453,0.33642271,2670.5,2670.3,7.48961]
[1739767018881,0.33642271,2670.5,2670.3,3.74478]
[1739767019360,0.33642271,2670.5,2670.2,3.74502]
[1739767019894,0.33642271,2670.5,2670.3,3.74481]
[1739767020608,0.33642271,2670.5,2670.4,3.74475]
[1739767020820,0.33642271,2670.5,2670.3,3.74481]
[1739767020821,0.33642271,2670.5,2670.3,7.48962]
[1739767021114,0.33642271,2670.5,2670.4,3.74475]
[1739767021501,0.33642271,2670.5,2670.2,0.7914]
[1739767021731,0.33642271,2670.5,2670.4,3.74475]
[1739767022127,0.33642271,2670.5,2670.2,4.53641]
[1739767022418,0.33642271,2670.5,2670.2,3.74501]
[1739767022628,0.7797,2670.4,2669.7,0.7914]
[1739767022780,0.7797,2670.3,2669.4,4.53754]
[1739767022978,0.7797,2670.3,2670.0,3.74531]
[1739767022979,0.33639832,2670.2,2670.0,3.74531]
[1739767023182,0.7797,2670.3,2670.2,3.74503]
[1739767023387,0.60239019,2670.3,2670.2,3.74503]
[1739767024090,0.33639019,2670.3,2670.2,5.83545]
[1739767024298,5.34,2670.4,2670.2,5.83545]
[1739767024511,5.34,2670.4,2670.3,3.74489]
[1739767024710,0.266,2670.6,2670.4,3.7447]
[1739767024894,0.266,2670.6,2670.4,3.74475]
[1739767025101,0.266,2670.6,2670.5,3.74461]
[1739767025420,0.266,2670.6,2670.4,3.74467]
[1739767026125,0.266,2670.6,2670.5,3.74461]
[1739767028735,0.266,2670.6,2670.4,3.74465]
[1739767029533,0.266,2670.6,2670.4,7.48933]
[1739767029743,0.266,2670.6,2670.4,3.74465]
[1739767034544,0.266,2670.6,2670.3,3.74488]
[1739767035934,0.266,2670.6,2670.2,0.55]
[1739767036133,0.266,2670.6,2670.2,4.29502]
[1739767036346,0.33642269,2670.5,2670.3,3.74488]
[1739767037349,0.8214,2670.4,2670.2,0.55]
[1739767037553,0.33652837,2670.3,2670.1,3.74511]
[1739767037849,0.8214,2670.2,2669.8,3.74549]
[1739767038047,4.56643,2670.2,2669.7,3.74566]
[1739767038424,0.33652837,2670.1,2669.7,3.74566]
[1739767038650,0.33652837,2670.1,2669.8,3.74558]
[1739767041417,0.33652837,2670.1,2669.8,3.74559]
[1739767041923,0.33652837,2670.1,2669.6,3.7458]
[1739767042141,0.33652837,2670.1,2669.7,3.74573]
[1739767042648,5.03115521,2670.1,2669.6,3.7458]
[1739767042949,0.8214,2670.0,2669.4,3.74607]
[1739767043152,9.53218,2670.0,2669.5,3.74593]
[1739767043447,0.33627635,2669.9,2669.3,1.3641]
[1739767044046,0.33627635,2669.9,2669.6,3.74581]
[1739767044827,0.33627635,2669.9,2669.3,1.3641]
[1739767045015,0.33627635,2669.9,2669.8,3.74559]
[1739767048154,0.266,2670.2,2669.8,3.74559]
[1739767048455,0.266,2670.2,2669.9,3.74545]
[1739767048755,0.33590236,2670.1,2669.9,3.74545]
[1739767050942,0.33590236,2670.1,2670.0,3.74531]
[1739767051259,5.606,2670.3,2670.1,3.74514]
[1739767051611,5.606,2670.3,2670.0,4.53951]
[1739767053063,5.606,2670.3,2670.2,3.74503]
[1739767053464,5.34,2670.3,2670.2,3.74503]
[1739767056574,0.266,2670.5,2670.2,3.74503]
[1739767056870,0.266,2670.5,2670.1,3.74516]
[1739767057074,0.266,2670.5,2669.9,3.74535]
[1739767057075,4.18648,2670.4,2669.9,3.74535]
[1739767057373,4.18648,2670.4,2670.0,3.7453]
[1739767059036,5.502736,2670.4,2669.9,3.74544]
[1739767059433,5.502736,2670.4,2669.9,7.49081]
[1739767059637,5.502736,2670.4,2669.9,3.74537]
[1739767060062,5.502736,2670.4,2670.0,3.7453]
[1739767060381,0.8162,2670.4,2669.9,3.74537]
[1739767060538,0.8162,2670.4,2670.1,3.74516]
[1739767061941,0.8162,2670.4,2669.9,3.74533]
[1739767062277,3.812,2670.4,2669.9,3.74533]
[1739767062638,3.812,2670.4,2669.9,7.49071]
[1739767062839,3.812,2670.4,2669.9,3.74533]
[1739767063340,3.812,2670.4,2669.9,7.49071]
[1739767063884,0.8162,2670.4,2669.9,3.74533]
[1739767064080,0.8162,2670.4,2670.0,3.7452]
[1739767065287,0.8162,2670.4,2670.1,3.74511]
[1739767066615,0.33643082,2670.3,2670.2,3.74497]
[1739767066905,0.60243082,2670.3,2670.2,3.74497]
[1739767067092,0.60243082,2670.3,2670.1,3.74517]
[1739767067610,0.60243082,2670.3,2670.0,4.5388]
[1739767067916,0.60243082,2670.3,2670.0,8.28404]
[1739767068907,0.60243082,2670.3,2670.1,3.74507]
[1739767069085,0.60243082,2670.3,2670.0,0.7936]
[1739767069317,0.60243082,2670.3,2670.1,3.74515]
[1739767073231,0.60243082,2670.3,2670.2,3.74503]
[1739767074315,0.60243082,2670.3,2670.1,3.74515]
[1739767076129,0.60243082,2670.3,2670.2,3.74503]
[1739767077718,0.60243082,2670.3,2670.1,3.74515]
[1739767078023,0.60243082,2670.3,2670.2,3.74503]
[1739767078805,0.60243082,2670.3,2670.0,0.7936]
[1739767079006,0.60243082,2670.3,2670.1,3.74511]
[1739767079803,0.60243082,2670.3,2670.1,7.4902]
[1739767080004,0.60243082,2670.3,2670.2,3.74503]
[1739767082734,0.60243082,2670.3,2670.1,3.74509]
[1739767083238,0.60243082,2670.3,2670.2,3.74503]
[1739767083996,0.60243082,2670.3,2670.1,3.74509]
[1739767084197,0.60243082,2670.3,2670.1,7.49019]
[1739767084433,0.60243082,2670.3,2670.2,3.74503]
[1739767085535,0.33643082,2670.3,2670.2,3.74503]
[1739767085693,0.33643082,2670.3,2670.2,4.573402]
[1739767088191,0.266,2670.5,2670.2,4.573402]
[1739767088398,0.266,2670.5,2670.2,3.74503]
[1739767088637,0.33630888,2670.4,2670.2,3.74503]
[1739767089340,0.33630888,2670.4,2670.1,3.74516]
[1739767090647,0.33630888,2670.4,2670.2,3.745]
[1739767093355,0.33630888,2670.4,2670.3,3.74489]
[1739767096966,0.33630888,2670.4,2670.2,3.74502]
[1739767097261,0.33630888,2670.4,2670.0,0.7936]
[1739767097566,0.266,2670.5,2670.3,3.74489]
[1739767097937,0.33641455,2670.4,2670.3,3.74489]
[1739767098829,0.33641455,2670.4,2670.2,3.745]
[1739767099968,0.33641455,2670.4,2670.2,3.74497]
[1739767103197,0.33641455,2670.4,2670.1,0.55]
[1739767103341,0.33641455,2670.4,2670.1,4.29516]
[1739767104081,0.33641455,2670.4,2670.1,0.55]
[1739767104380,0.33641455,2670.4,2670.2,3.74502]
[1739767105688,0.33641455,2670.4,2670.3,3.74489]
[1739767115189,5.606,2670.6,2670.4,3.74466]
[1739767115893,5.606,2670.6,2670.3,7.48978]
[1739767116396,5.606,2670.6,2670.4,3.74473]
[1739767120069,5.606,2670.6,2670.5,3.74461]
[1739767125728,5.94256088,2670.6,2670.5,3.74461]
[1739767127444,5.67656088,2670.6,2670.5,5.49703482]
[1739767127736,0.33656088,2670.6,2670.5,5.30135648]
[1739767128123,0.266,2670.9,2670.5,5.30135648]
[1739767128331,0.266,2670.9,2670.6,3.74438]
[1739767128855,0.266,2670.9,2670.7,3.74428]
[1739767130518,0.266,2670.9,2670.8,3.74419]
[1739767130726,0.266,2670.9,2670.7,3.74425]
[1739767132441,0.266,2670.9,2670.8,3.74419]
[1739767133707,0.266,2670.9,2670.6,3.74445]
[1739767133947,0.266,2670.9,2670.7,3.74431]
[1739767134353,0.266,2670.9,2670.5,1.00674648]
[1739767134354,0.266,2670.9,2670.6,3.74435]
[1739767134656,0.266,2670.9,2670.7,3.74431]
[1739767134853,0.266,2670.9,2670.6,3.74447]
[1739767135210,0.266,2670.9,2670.7,3.74433]
[1739767136448,0.266,2670.9,2670.6,3.74446]
[1739767137417,0.266,2670.9,2670.6,3.74435]
[1739767138913,0.266,2670.9,2670.5,4.75124648]
[1739767139113,0.266,2670.9,2670.5,8.49576648]
[1739767139313,0.266,2670.9,2670.6,3.74441]
[1739767139515,0.266,2670.9,2670.7,3.74427]
[1739767140438,0.266,2670.9,2670.5,1.00674648]
[1739767140640,0.266,2670.9,2670.5,4.75125648]
[1739767140873,0.266,2670.9,2670.6,3.74446]
[1739767141260,0.3367397,2670.8,2670.6,3.74446]
[1739767141460,0.3367397,2670.8,2670.6,4.67661965]
[1739767142649,0.3367397,2670.8,2670.6,3.74446]
[1739767143085,0.3367397,2670.8,2670.6,3.74436]
[1739767144047,0.3367397,2670.8,2670.5,3.74459]
[1739767144490,0.3367397,2670.8,2670.5,3.74453]
[1739767146387,0.3367397,2670.8,2670.6,3.74442]
[1739767146689,0.3367397,2670.8,2670.5,3.74453]
[1739767146884,0.3367397,2670.8,2670.6,3.74442]
[1739767147556,0.3367397,2670.8,2670.5,3.74453]
[1739767148051,0.3367397,2670.8,2670.5,3.74452]
[1739767149088,0.3367397,2670.8,2670.6,3.74437]
[1739767149854,0.3367397,2670.8,2670.5,3.74453]
[1739767150056,0.3367397,2670.8,2670.4,0.8257]
[1739767150257,0.3367397,2670.8,2670.6,3.74441]
[1739767150769,0.3367397,2670.8,2670.6,3.7444]
[1739767150967,0.3367397,2670.8,2670.6,3.74441]
[1739767153396,0.3367397,2670.8,2670.5,5.49700482]
[1739767153553,0.3367397,2670.8,2670.5,3.74458]
[1739767153888,0.7962,2670.7,2670.4,3.74474]
[1739767154296,0.3366747,2670.6,2670.4,3.74474]
[1739767154819,0.3366747,2670.6,2670.4,3.74468]
[1739767156574,0.3366747,2670.6,2670.3,7.48962]
[1739767156815,0.3366747,2670.6,2670.3,3.74481]
[1739767157519,0.3366747,2670.6,2670.4,3.74474]
[1739767159635,0.3366747,2670.6,2670.5,3.74461]
[1739767160423,1.0622,2670.9,2670.5,3.74461]
[1739767160581,0.3366747,2670.6,2670.5,3.74461]
[1739767160781,6.4022,2670.9,2670.5,3.74461]
[1739767161003,0.3366747,2670.6,2670.5,3.74461]
[1739767161340,0.33668281,2670.6,2670.5,3.74461]
[1739767161478,6.4022,2670.9,2670.5,3.74461]
[1739767161674,0.33668281,2670.8,2670.5,3.74461]
[1739767162329,0.33668281,2670.8,2670.4,3.74475]
[1739767162619,0.33668281,2670.8,2670.6,3.74446]
[1739767162620,0.266,2670.7,2670.6,3.74446]
[1739767163006,0.6027966,2670.7,2670.6,3.74446]
[1739767164999,0.6027966,2670.7,2670.5,3.7446]
[1739767166337,0.6027966,2670.7,2670.6,3.74447]
[1739767166938,0.6027966,2670.7,2670.5,3.7446]
[1739767167237,0.6027966,2670.7,2670.4,4.54932]
[1739767167431,0.6027966,2670.7,2670.4,4.54929]
[1739767167639,0.6027966,2670.7,2670.5,3.74455]
[1739767168643,0.6027966,2670.7,2670.4,4.54929]
[1739767168943,0.6027966,2670.7,2670.5,3.7445]
[1739767170839,2.99614,2670.1,2669.5,3.74601]
[1739767171021,0.7889,2670.0,2669.5,3.74601]
[1739767171228,0.266,2669.9,2669.5,3.74601]
[1739767171542,0.7889,2670.5,2670.0,3.7453]
[1739767171694,0.33103912,2670.4,2669.9,1.75242482]
[1739767171893,0.33103912,2670.4,2670.3,3.74478]
[1739767172506,0.33103912,2670.4,2670.3,5.49720482]
[1739767173211,0.33103912,2670.4,2670.3,6.04720482]
[1739767173540,0.7889,2670.9,2670.5,3.74448]
[1739767173541,0.266,2670.9,2670.5,3.74448]
[1739767173745,0.32438497,2670.8,2670.6,3.74447]
[1739767174040,0.32438497,2670.8,2670.7,3.74433]
[1739767174819,0.32438497,2670.8,2670.5,3.74461]
[1739767175159,0.32438497,2670.8,2670.5,7.48915]
[1739767175355,0.32438497,2670.8,2670.5,3.74454]
[1739767175555,0.32438497,2670.8,2670.6,3.74446]
[1739767175762,0.32438497,2670.8,2670.5,3.74454]
[1739767176536,0.32438497,2670.8,2670.3,0.55]
[1739767176836,0.32438497,2670.8,2670.4,3.74475]
[1739767177031,0.32438497,2670.8,2670.2,4.57813]
[1739767177251,0.7889,2670.7,2670.2,4.57813]
[1739767177636,0.32450755,2670.6,2670.2,4.57813]
[1739767177834,0.32450755,2670.6,2670.2,5.43631025]
[1739767178041,0.32450755,2670.6,2670.3,3.74489]
[1739767179132,0.32450755,2670.6,2670.4,3.74467]
[1739767179332,5.34,2670.8,2670.3,3.74489]
[1739767179659,0.32450755,2670.7,2670.3,3.74489]
[1739767180062,5.34,2670.8,2670.3,3.74489]
[1739767180260,0.32450755,2670.6,2670.3,3.74489]
[1739767180430,5.34,2670.8,2670.3,3.74489]
[1739767180628,0.32450755,2670.5,2670.3,3.74489]
[1739767180962,0.32450755,2670.4,2670.3,3.74489]
[1739767181148,5.34,2670.8,2670.3,3.74489]
[1739767181348,0.32450755,2670.7,2670.3,3.74489]
[1739767181559,5.34,2670.8,2670.3,3.74489]
[1739767181867,0.32450755,2670.7,2670.3,3.74489]
[1739767182172,5.34,2670.8,2670.3,3.74489]
[1739767182377,0.32450755,2670.6,2670.3,3.74489]
[1739767182564,3.32042895,2670.7,2670.1,7.49022]
[1739767182769,3.32042895,2670.7,2670.1,7.4902]
[1739767182964,0.32494895,2670.7,2670.2,3.74501]
[1739767185907,3.32047895,2670.7,2670.1,3.74513]
[1739767186193,0.7916,2670.6,2670.0,1.07445248]
[1739767186384,0.7916,2670.6,2670.1,3.7451]
[1739767186585,0.3248754,2670.5,2670.1,3.7451]
[1739767186788,0.3248754,2670.5,2670.1,4.65658925]
[1739767190088,2.99585,2670.4,2669.7,4.56154]
[1739767190328,1.11641001,2670.3,2669.8,3.74552]
[1739767190913,4.11238001,2670.3,2669.7,3.74564]
[1739767191125,3.78763,2670.2,2669.7,3.74564]
[1739767191297,0.266,2670.1,2669.7,3.74564]
[1739767191500,0.32481001,2670.0,2669.7,3.74564]
[1739767194535,0.32481001,2670.0,2669.5,3.74591]
[1739767194690,0.7916,2669.9,2669.5,3.74591]
[1739767194890,0.32398441,2669.8,2669.5,3.74591]
[1739767196208,0.32398441,2669.8,2669.3,4.2962]
[1739767196534,0.32398441,2669.8,2669.4,4.29615]
[1739767197571,0.32398441,2669.8,2669.4,3.74615]
[1739767197872,0.73516785,2669.8,2669.4,3.74615]
[1739767198374,0.765,2669.7,2669.2,3.7463]
[1739767198671,0.765,2669.7,2669.1,4.56239]
[1739767198672,0.765,2669.5,2669.1,3.74649]
[1739767199035,0.32376364,2669.4,2669.1,3.74649]
[1739767199447,0.32376364,2669.4,2668.7,4.52394]
[1739767199653,0.32376364,2669.4,2668.9,3.74685]
[1739767200069,0.32376364,2669.4,2668.9,3.74677]
[1739767200369,0.765,2669.3,2668.9,3.74677]
[1739767200573,4.02804,2669.3,2668.7,7.4941]
[1739767200873,0.32376364,2669.2,2668.8,3.747]
[1739767201298,1.031,2669.3,2668.8,3.747]
[1739767201450,0.32346922,2669.1,2668.9,3.74676]
[1739767201649,1.031,2669.3,2668.9,3.74676]
[1739767201882,0.32346922,2669.0,2668.9,3.74676]
[1739767202095,1.031,2669.3,2668.9,3.74676]
[1739767202295,0.32346922,2669.0,2668.7,3.74707]
[1739767202587,0.32346922,2668.9,2668.7,3.74707]
[1739767202773,4.02804,2669.3,2668.7,3.74707]
[1739767202975,0.32346922,2669.2,2668.7,3.74707]
[1739767203156,0.32346922,2669.2,2668.9,3.74678]
[1739767203360,1.733492,2669.3,2668.9,3.74678]
[1739767203579,0.32346922,2669.2,2668.8,3.74698]
[1739767203741,4.730532,2669.3,2668.8,3.74698]
[1739767203946,0.32346922,2669.2,2668.7,3.74703]
[1739767204143,0.32346922,2669.2,2668.8,3.74693]
[1739767204446,1.031,2669.3,2668.8,3.74693]
[1739767204793,4.02805,2669.3,2668.8,3.74693]
[1739767204963,0.32346922,2669.2,2668.8,3.74693]
[1739767205163,4.02805,2669.3,2668.8,3.74693]
[1739767205363,0.32346922,2669.2,2668.8,3.74693]
[1739767205564,4.02805,2669.3,2668.8,3.74693]
[1739767205886,0.32346922,2669.2,2668.8,3.74691]
[1739767206290,4.02805,2669.3,2668.8,3.74691]
[1739767206495,0.32288036,2669.1,2668.9,3.74685]
[1739767206699,0.32288036,2669.1,2668.9,3.74675]
[1739767206854,1.031,2669.3,2668.9,3.74675]
[1739767207054,0.32288036,2669.0,2668.9,3.74675]
[1739767207257,4.02809,2669.3,2668.7,3.74703]
[1739767207445,0.32288036,2669.0,2668.7,4.121733]
[1739767207654,1.031,2669.3,2668.8,3.74689]
[1739767207887,0.32288036,2668.9,2668.8,3.747]
[1739767208087,1.031,2669.3,2668.9,3.74677]
[1739767209812,1.031,2669.3,2668.9,3.74676]
[1739767210304,0.266,2669.2,2669.0,3.74664]
[1739767210505,0.266,2669.2,2669.0,3.74672]
[1739767211090,0.266,2669.2,2668.9,3.74676]
[1739767211296,0.266,2669.2,2668.9,7.49356]
[1739767211506,0.266,2669.2,2669.0,3.74671]
[1739767213262,0.266,2669.2,2669.0,3.74664]
[1739767215670,0.266,2669.2,2669.1,3.74658]
[1739767216095,0.765,2669.3,2668.9,0.7867]
[1739767216291,5.34,2669.4,2669.3,3.7463]
[1739767216492,6.1157,2670.0,2669.9,3.74545]
[1739767216696,8.417,2670.1,2669.9,7.49083]
[1739767216937,8.417,2670.1,2669.9,3.74538]
[1739767217116,8.417,2670.1,2669.9,4.53208]
[1739767217604,8.417,2670.1,2669.9,3.74538]
[1739767218230,8.417,2670.1,2669.7,3.74559]
[1739767218231,0.94587,2670.1,2669.7,3.74559]
[1739767218534,0.266,2670.2,2669.7,3.74559]
[1739767218835,2.99632,2670.0,2669.4,3.74612]
[1739767219137,5.99268,2670.0,2669.4,3.74612]
[1739767219332,0.7757,2669.8,2669.3,3.74616]
[1739767219535,6.1157,2669.8,2669.3,3.74616]
[1739767219768,7.326549,2669.8,2669.3,3.74616]
[1739767220098,7.326549,2669.8,2669.3,7.49237]
[1739767220732,7.326549,2669.8,2669.3,3.74616]
[1739767221809,7.326549,2669.8,2669.4,3.74615]
[1739767222337,7.326549,2669.8,2669.3,3.74616]
[1739767222852,7.326549,2669.8,2669.3,7.49237]
[1739767223198,7.326549,2669.8,2669.3,3.74616]
[1739767223425,7.326549,2669.8,2669.3,7.49238]
[1739767223643,7.326549,2669.8,2669.3,3.74616]
[1739767224042,4.0289319,2669.7,2669.2,3.74635]
[1739767224359,2.99682,2669.5,2668.9,3.74672]
[1739767224565,0.266,2669.4,2668.9,3.74672]
[1739767224712,0.266,2669.4,2668.9,7.49347]
[1739767225663,0.266,2669.4,2669.0,3.74663]
[1739767227758,0.8072,2669.3,2668.9,3.74672]
[1739767230159,0.8072,2669.3,2668.9,7.49347]
[1739767230316,0.8072,2669.3,2668.9,3.74672]
[1739767230819,0.8072,2669.3,2669.0,3.74668]
[1739767231364,0.31140446,2669.2,2669.0,3.74668]
[1739767231567,0.8072,2669.3,2669.0,3.74668]
[1739767231731,0.31140446,2669.2,2669.0,3.74668]
[1739767231937,0.31140446,2669.2,2668.9,3.74672]
[1739767232270,0.31140446,2669.1,2668.9,3.74672]
[1739767232464,0.31140446,2669.1,2668.9,7.49351]
[1739767232644,0.8072,2669.3,2668.9,3.74672]
[1739767232849,0.8072,2669.3,2668.7,0.55]
[1739767233148,0.8072,2669.3,2669.0,3.74665]
[1739767233344,5.606,2669.4,2669.1,3.74658]
[1739767233521,5.34,2669.4,2669.3,3.7463]
[1739767233960,5.34,2669.4,2669.2,3.74633]
[1739767234156,5.34,2669.4,2669.3,3.7463]
[1739767234359,5.34,2669.4,2669.1,3.74647]
[1739767234922,3.26282,2669.5,2669.1,3.74647]
[1739767235259,0.266,2669.5,2669.1,7.49296]
[1739767235862,0.266,2669.5,2669.1,3.74647]
[1739767235863,3.26284,2669.5,2669.1,3.74647]
[1739767236228,0.266,2669.5,2669.1,7.49296]
[1739767236433,0.266,2669.5,2669.1,3.74647]
[1739767237657,0.266,2669.5,2669.0,3.74659]
[1739767237962,0.266,2669.5,2669.1,3.74653]
[1739767238321,0.266,2669.5,2669.1,3.7465]
[1739767239178,3.26285,2669.5,2669.0,7.49322]
[1739767240182,0.266,2669.5,2669.1,3.74657]
[1739767241064,3.26286,2669.5,2668.9,4.29681]
[1739767241266,0.8072,2669.4,2669.0,3.74665]
[1739767241976,3.80413,2669.4,2669.0,3.7467]
[1739767242179,3.80413,2669.4,2668.9,3.74685]
[1739767245566,0.8267,2669.3,2668.7,3.74706]
[1739767245782,3.82379,2669.3,2668.7,3.74706]
[1739767245947,3.82379,2669.3,2668.8,3.74689]
[1739767246594,0.31111665,2669.2,2668.8,3.74689]
[1739767246882,3.82379,2669.3,2668.8,3.747]
[1739767247086,0.31111665,2669.1,2668.8,3.747]
[1739767247389,0.31111665,2669.0,2668.8,3.747]
[1739767247576,3.82379,2669.3,2668.8,3.747]
[1739767247887,3.30831665,2669.2,2668.7,3.74705]
[1739767248090,3.30831665,2669.2,2668.8,3.74699]
[1739767253596,0.8267,2669.1,2668.8,3.74699]
[1739767253899,0.31105086,2669.0,2668.8,3.74699]
[1739767255296,0.31105086,2669.0,2668.7,7.49412]
[1739767255508,0.31105086,2669.0,2668.7,3.74705]
[1739767255659,0.31105086,2669.0,2668.5,3.74732]
[1739767255967,0.8267,2668.9,2668.5,3.74732]
[1739767256374,0.31086993,2668.8,2668.3,3.74763]
[1739767256565,0.8267,2668.6,2668.3,3.7476]
[1739767256761,0.8267,2668.6,2668.4,3.74753]
[1739767256962,0.31074654,2668.5,2668.4,3.74756]
[1739767258705,0.31074654,2668.5,2668.3,3.74765]
[1739767259068,0.31074654,2668.5,2668.4,3.74756]
[1739767259469,0.31074654,2668.5,2668.3,3.74765]
[1739767259671,0.31074654,2668.5,2668.3,3.74761]
[1739767259899,0.31074654,2668.5,2668.4,3.74756]
[1739767268022,0.31074654,2668.5,2668.4,5.864184]
[1739767268221,5.34,2668.9,2668.8,3.747]
[1739767268516,5.65040926,2668.9,2668.8,4.5641]
[1739767270478,0.31040926,2668.9,2668.8,4.5641]
[1739767270683,0.266,2669.1,2669.0,3.74672]
[1739767273173,5.34,2669.4,2669.1,4.54868]
[1739767273374,5.34,2669.4,2669.2,3.74644]
[1739767273673,5.34,2669.4,2669.1,3.74658]
[1739767274275,5.34,2669.4,2669.2,3.74643]
[1739767276554,0.31048329,2669.3,2669.2,3.74643]
[1739767276892,1.0208,2669.5,2669.2,3.74643]
[1739767277083,0.31048329,2669.3,2669.2,3.74643]
[1739767277248,1.0208,2669.5,2669.2,3.74643]
[1739767277444,0.31048329,2669.4,2669.2,3.74643]
[1739767278278,0.31048329,2669.4,2669.0,3.74671]
[1739767278455,0.31048329,2669.4,2669.0,7.4933]
[1739767278661,0.31048329,2669.4,2669.1,3.74654]
[1739767280559,0.31048329,2669.4,2669.0,3.74659]
[1739767280759,0.31048329,2669.4,2669.0,7.49324]
[1739767280959,0.31048329,2669.4,2669.0,3.74659]
[1739767282299,0.31048329,2669.4,2669.0,7.49323]
[1739767283006,0.31048329,2669.4,2669.1,3.74645]